Cogmind - Beta 13 @@@ ROGUE MODE // 2024.05.20 @ 15:50:38 Player: Some Pennies Result: Escaped! Performance ------------- Evolutions (9) 4500 Regions Visited (25) 5000 Robots Destroyed (319) 1595 Value Destroyed (9849) 9849 Prototype IDs (95) 1900 Alien Tech Used (0) 0 Bonus (9797) 9797 TOTAL SCORE: 32641 Bonus ------- Triggered High Security 500 High Alert Combat Kills 1914 Follower Combat Kills 1205 Network Hubs Disabled 400 Aligned with FarCom 300 Met Zhirov 300 Built Enhanced Grunts 300 Met R17 at Cetus 500 Met R17 at Research 2000 Win 3000 Friendly Fire -622 Cogmind --------- Core Integrity 1435/1600 Matter 300/300 Energy 135/150 System Corruption 0% Temperature Cool (3) Movement Flying (35) Location To Epsilon Eridani Parts ------- > --- POWER (1) -------- Micro Antimatter Reactor > --- PROPULSION (5) --- Cooled VTOL Module Impulse Thruster Array Impulse Thruster Array > --- UTILITY (17) ----- Advanced Coolant Injector Medium Storage Unit Machine Analyzer Triangulator Enhanced Optical Array Advanced Transmission Jammer Advanced Cloaking Device Improved Propulsion Shielding Improved Propulsion Shielding Centrium Light Armor Plating Improved Hacking Suite Improved Hacking Suite Advanced Hacking Suite System Shield Advanced Corruption Screen > --- WEAPON (2) ------- Molecular Scythe Plasma Lance > --- INVENTORY (10) --- Micro Antimatter Reactor Impulse Thruster Array Medium Storage Unit Experimental Shield Generator Mapping Drone Bay (3/3) Firepult Compact Mass Driver Peak State ------------ > --- POWER ------------ Micro Antimatter Reactor > --- PROPULSION ------- Cooled VTOL Module Impulse Thruster Array Impulse Thruster Array > --- UTILITY ---------- Experimental Heat Sink Medium Storage Unit Machine Analyzer Triangulator Enhanced Optical Array Advanced Transmission Jammer ECM Suite Advanced Cloaking Device Improved Propulsion Shielding Centrium Light Armor Plating Hacking Suite Improved Hacking Suite Improved Hacking Suite Advanced Hacking Suite System Shield Advanced Corruption Screen Mapping Drone Bay > --- WEAPON ----------- Molecular Scythe Plasma Lance > --- INVENTORY -------- Micro Antimatter Reactor Impulse Thruster Array Medium Storage Unit Experimental Shield Generator Firepult Compact Mass Driver [Rating: 153] Favorites ----------- Power Light Nuclear Core Engine Improved Ion Engine Power Core Light Nuclear Core Reactor Quantum Reactor Propulsion Cooled VTOL Module Treads Light Treads Leg Flexi-carbon Leg Wheel Wheel Flight Unit Cooled VTOL Module Utility Hacking Suite Device Seismic Detector Storage Huge Storage Unit Processor Machine Analyzer Hackware Hacking Suite Protection Hardened Light Armor Plating Weapon Assault Rifle Energy Gun Advanced Beam Rifle Energy Cannon Advanced Beam Cannon Ballistic Gun Assault Rifle Ballistic Cannon Bore Cannon Launcher Precision Grenade Launcher Special Weapon Advanced Remote Datajack Impact Weapon Power Maul Slashing Weapon Molecular Scythe Piercing Weapon Plasma Lance Special Melee Weapon Datajack Build | -11 -10 -10 -9 -9 -9 -8 -8 -8 -7 -7 -7 -6 -6 -6 -6 -6 -5 -5 -5 -4 -4 -4 -3 -2 -1 ------- Run | Yrd Mat Min Mat Min Exi Min Mat Sto Fac Low Low Fac Ext Cet Arc Hub Fac Was Fac Fac Upp Upp Res Res Acc Slots Evolved 18 | . . . 2 . . . 2 . 2 . . 2 . . . . 2 . . 2 . . 2 2 2 Power . | . . . . . . . . . . . . . . . . . . . . . . . . . . Propulsion 3 | . . . 1 . . . 1 . 1 . . . . . . . . . . . . . . . . Utility 15 | . . . 1 . . . 1 . 1 . . 2 . . . . 2 . . 2 . . 2 2 2 Weapon . | . . . . . . . . . . . . . . . . . . . . . . . . . . Parts Attached 406 | 10 20 2 29 17 5 3 54 18 31 3 . 10 32 14 1 53 12 2 10 19 3 1 43 4 10 Power 43 | 1 3 . 4 3 . . 5 2 3 . . 2 1 2 . 4 . . 1 6 1 1 4 . . Engine 13 | 1 3 . 2 1 . . 1 1 2 . . 1 . . . . . . . . . . 1 . . Core 22 | . . . 2 2 . . 4 1 1 . . 1 1 . . 2 . . 1 5 1 1 . . . Reactor 8 | . . . . . . . . . . . . . . 2 . 2 . . . 1 . . 3 . . Propulsion 89 | 5 5 . 7 4 . . 17 5 12 . . . 9 3 . 11 . . 2 3 . . 6 . . Treads 29 | 2 5 . 7 . . . 8 . . . . . . 3 . 4 . . . . . . . . . Leg 3 | . . . . 1 . . . . . . . . . . . 2 . . . . . . . . . Wheel 13 | 3 . . . 3 . . 3 . . . . . 4 . . . . . . . . . . . . Hover . | . . . . . . . . . . . . . . . . . . . . . . . . . . Flight 44 | . . . . . . . 6 5 12 . . . 5 . . 5 . . 2 3 . . 6 . . Utility 134 | 2 5 . 10 5 4 . 17 2 7 2 . 3 8 3 . 13 11 . 1 9 1 . 22 4 5 Device 77 | 1 1 . 6 3 4 . 7 1 3 1 . 1 5 2 . 6 7 . . 8 1 . 14 2 4 Storage 12 | 1 3 . . . . . 2 1 1 . . . 1 . . 1 . . . . . . 2 . . Processor 6 | . . . 1 . . . . . 1 . . 1 . . . . . . . . . . 2 1 . Hackware 13 | . . . . . . . 3 . . . . . 1 . . . 4 . 1 1 . . 2 1 . Protection 26 | . 1 . 3 2 . . 5 . 2 1 . 1 1 1 . 6 . . . . . . 2 . 1 Artifact . | . . . . . . . . . . . . . . . . . . . . . . . . . . Weapon 140 | 2 7 2 8 5 1 3 15 9 9 1 . 5 14 6 1 25 1 2 6 1 1 . 11 . 5 Energy Gun 23 | . . . 1 1 . . 4 3 6 . . 1 2 2 1 . . . . . . . 2 . . Energy Cannon 19 | . 1 2 2 1 . . 1 . . . . . 2 2 . 5 . 1 . . . . 1 . 1 Ballistic Gun 40 | 2 4 . 4 1 . . 8 . . . . . . 2 . 15 . . 2 . 1 . . . 1 Ballistic Cannon 3 | . . . . . . . . . . . . 1 1 . . . . . . . . . 1 . . Launcher 18 | . 1 . . 2 . 1 1 3 . 1 . . 5 . . 2 . . . . . . 2 . . Special Weapon 3 | . . . . . . . . . 1 . . . . . . . . . 1 . . . 1 . . Impact Weapon 16 | . . . . . . . . 3 2 . . 3 2 . . 1 . 1 3 . . . 1 . . Slashing Weapon 5 | . . . 1 . . 1 . . . . . . . . . . . . . . . . 1 . 2 Piercing Weapon 3 | . . . . . . . . . . . . . . . . . . . . . . . 2 . 1 Special Melee Weapon 10 | . 1 . . . 1 1 1 . . . . . 2 . . 2 1 . . 1 . . . . . Unidentified Prototypes 34 | . . . 1 1 . . 2 . 3 . . 1 . 4 . 4 . . . 2 . . 14 1 1 Parts Lost 42 | . 4 . . 6 . . 6 2 . . . . 2 2 1 5 . . 2 2 2 . 5 . 3 Power 6 | . . . . 2 . . . 1 . . . . . . . 1 . . . . . . 2 . . Propulsion 11 | . 1 . . 2 . . 4 . . . . . . 1 . 1 . . . 1 . . 1 . . Utility 14 | . 1 . . 1 . . . . . . . . 2 1 . 1 . . 2 1 1 . 1 . 3 Weapon 11 | . 2 . . 1 . . 2 1 . . . . . . 1 2 . . . . 1 . 1 . . Highest Loss Streak 3 | . 2 . . 3 . . 2 1 . . . . 1 2 1 2 . . 2 2 2 . 2 . 3 To Critical Strikes 3 | . . . . 1 . . . . . . . . . 1 . 1 . . . . . . . . . Average Slot Usage (%) 94 | . 95 100 99 87 100 100 95 92 97 100 100 94 94 82 80 83 98 100 99 94 93 90 84 91 86 Engine 4 | . 13 14 5 1 11 11 2 . 3 . . 2 . . . . . . . . . . . . . Core 3 | . . . 5 2 . . 6 7 3 7 7 3 6 . . . 5 5 5 4 5 5 . . . Treads 15 | . 23 28 32 14 . . 24 . . . . . . 6 13 15 . . . . . . . . . Wheel 3 | . 3 . . 6 33 33 6 . . . . . 1 14 . . . . . . . . . . . Flight 9 | . . . . . . . 1 36 37 38 38 33 29 . . 2 29 29 28 25 26 26 19 13 12 Device 10 | . 2 . 10 11 11 11 8 . 4 6 7 6 12 17 20 15 16 11 9 21 24 22 18 17 17 Storage 8 | . 14 14 11 11 11 11 9 8 7 7 7 6 6 6 6 6 5 5 5 5 5 5 4 4 4 Processor 5 | . . . 5 . . . . . 5 7 7 8 13 13 13 13 11 11 11 10 10 10 10 13 12 Hackware 6 | . . . . . . . 9 24 15 15 15 13 5 . . . 15 23 25 16 15 15 15 21 18 Protection 6 | . 8 14 5 10 11 11 8 . 2 . . 4 6 5 6 9 . . . . . . 3 8 11 Energy Gun 1 | . . . . . . . 1 1 6 7 7 6 3 5 3 . . . . . . . . . . Energy Cannon 3 | . . 14 9 11 . . 3 . . . . . . . . 1 . . . . . . . . . Ballistic Gun 8 | . 24 14 10 8 11 10 11 . . . . . . 5 9 8 . . . . . . . . . Impact Weapon 1 | . . . . . . . . 6 7 4 . 5 . . . . 5 5 3 5 5 5 2 . . Special Melee Weapon 1 | . 2 . . . 10 10 . 5 . . . . . . . . 4 5 5 5 . . . . . Naked Turns . | . . . . . . . . . . . . . . . . . . . . . . . . . . Heaviest Build 105 | 13 97 100 99 99 99 96 105 23 25 25 25 25 68 92 82 98 35 23 23 28 30 24 37 34 50 Greatest Support 180 | 40 40 40 65 62 42 42 82 20 35 25 25 35 40 160 160 180 37 25 33 37 25 25 37 37 39 Greatest Overweight (x) 10 | 3 7 2 2 4 2 2 10 4 1 . . . 8 2 . 1 1 . 1 1 1 . 6 . 1 Average Overweight (x) . | . 1 2 1 2 2 2 1 . . . . . . . . . . . . . . . . . . Largest Inventory Capacity 25 | 8 25 25 25 25 25 25 25 10 10 10 10 10 20 20 20 20 10 10 10 10 10 10 10 10 10 Average Capacity 18 | 7 20 25 25 25 25 25 24 9 10 10 10 10 11 20 20 19 10 10 10 10 10 10 10 10 10 Most Carried 25 | 6 20 25 25 25 24 24 25 10 10 10 10 10 17 20 20 20 10 10 10 10 10 10 10 9 10 Average Carried 17 | 3 15 20 24 22 23 24 24 9 9 10 10 9 10 19 20 18 9 9 9 9 9 9 9 8 8 Final Capacity 25 | 8 25 25 25 25 25 25 10 10 10 10 10 10 20 20 20 10 10 10 10 10 10 10 10 10 10 Final Carried 25 | 5 20 23 25 22 24 24 10 10 10 10 10 10 17 20 20 10 10 10 10 10 9 10 10 8 9 Class Distribution -------------------- 34% | Mutant 21% | Scavenger-Mutant 12% | Hacker-Ninja 10% | Scavenger-Skirmisher 9% | Hacker-Sprinter 3% | Hacker-Assassin Dominant Class ---------------- Mutant | -10/Materials Mutant | -10/Mines Mutant | -9/Materials Mutant | -9/Mines Scavenger-Mutant | -9/Exiles Scavenger-Mutant | -8/Mines Scavenger-Mutant | -8/Materials Hacker-Sprinter | -8/Storage Hacker-Sprinter | -7/Factory Hacker-Sprinter | -7/Lower Caves Hacker-Sprinter | -7/Lower Caves Hacker-Sprinter | -6/Factory Skirmisher | -6/Extension Scavenger-Skirmisher | -6/Cetus Scavenger-Skirmisher | -6/Archives Scavenger-Skirmisher | -6/Hub_04(d) Hacker-Ninja | -5/Factory Hacker-Ninja | -5/Waste Hacker-Ninja | -5/Factory Hacker-Ninja | -4/Factory Hacker-Mutant | -4/Upper Caves Hacker-Sprinter | -4/Upper Caves Hacker-Ninja | -3/Research Hacker-Ninja | -2/Research Hacker-Ninja | -1/Access Resources | -11 -10 -10 -9 -9 -9 -8 -8 -8 -7 -7 -7 -6 -6 -6 -6 -6 -5 -5 -5 -4 -4 -4 -3 -2 -1 ----------- Run | Yrd Mat Min Mat Min Exi Min Mat Sto Fac Low Low Fac Ext Cet Arc Hub Fac Was Fac Fac Upp Upp Res Res Acc Matter Collected 8454 | 220 454 226 674 353 . . 1235 339 230 188 . 60 665 199 32 1336 21 179 58 709 399 251 484 . 142 Remotely . | . . . . . . . . . . . . . . . . . . . . . . . . . . Salvage Created 13645 | 49 554 197 2077 200 . 13 1809 377 289 80 . 148 1594 662 40 3397 21 . 228 760 178 17 619 . 336 Parts 619 | 7 48 7 137 11 . 5 96 16 11 8 . 5 88 17 2 113 3 . 4 5 . . 19 . 17 Haulers Intercepted 28 | . 2 . 5 . . . 5 . 3 . . 1 1 . . 3 . . 2 2 . . 4 . . Recyclers Shooed 12 | 1 . 1 6 . . . 3 . . . . . . . . 1 . . . . . . . . . Parts Field Recycled . | . . . . . . . . . . . . . . . . . . . . . . . . . . Retrieved Matter . | . . . . . . . . . . . . . . . . . . . . . . . . . . Parts Self-Destructed 18 | . . . . . . . . . . 3 . . . . . . . . . . 7 8 . . . Prevented . | . . . . . . . . . . . . . . . . . . . . . . . . . . Kills | -11 -10 -10 -9 -9 -9 -8 -8 -8 -7 -7 -7 -6 -6 -6 -6 -6 -5 -5 -5 -4 -4 -4 -3 -2 -1 ------- Run | Yrd Mat Min Mat Min Exi Min Mat Sto Fac Low Low Fac Ext Cet Arc Hub Fac Was Fac Fac Upp Upp Res Res Acc Combat Hostiles Destroyed 174 | . 9 . 24 13 . 4 27 5 . 8 . 1 19 9 . 44 . . . . 4 1 4 . 2 Melee 4 | . . . . . . . . 3 . . . 1 . . . . . . . . . . . . . Guns 63 | . 5 . 12 3 . . 16 . . . . . 6 1 . 20 . . . . . . . . . Cannons 25 | . . . 12 3 . . 6 . . . . . 2 . . 2 . . . . . . . . . AOE 55 | . 4 . . 7 . 4 5 1 . 8 . . 9 . . 13 . . . . . . 4 . . Classes Destroyed 23 | 1 5 1 4 2 . . 1 . . . . 1 2 . . 3 . . . 1 2 . . . . Worker 43 | . 4 . 7 2 . . 3 4 5 . . . 6 . . 8 . . . 3 . . 1 . . Builder 12 | . . 1 1 . . . 1 . . . . . 5 . . 3 . . . 1 . . . . . Tunneler 14 | 3 1 . 1 . . . . . . . . . 7 . . . . . . 1 . . 1 . . Hauler 28 | . 2 . 5 . . . 5 . 3 . . 1 1 . . 3 . . 2 2 . . 4 . . Recycler 21 | . 1 2 7 . . . 2 1 1 . . . 3 . . 2 . . . 2 . . . . . Carrier 1 | . . . . . . . . . . . . . 1 . . . . . . . . . . . . Mechanic 1 | . . . . . . . . . . . . . . . . . . . . 1 . . . . . Operator 10 | . . . 4 . . . 2 . . . . 1 . . . . 1 . 1 . . . 1 . . Watcher 27 | . 3 . 5 . . . 4 1 1 . . . 1 1 . 3 . . 1 4 . . 3 . . Swarmer 36 | . . . 5 . . 4 4 . . 8 . . 6 . . 1 . . . . 3 1 4 . . Cutter 1 | . . . . . . . . . . . . 1 . . . . . . . . . . . . . Grunt 58 | . 9 . 9 . . . 12 3 . . . . 5 . . 20 . . . . . . . . . Brawler 4 | . . . . . . . 1 . . . . . 1 . . 2 . . . . . . . . . Duelist 3 | . . . 2 . . . 1 . . . . . . . . . . . . . . . . . . Protector 1 | . . . . . . . . . . . . . . . . 1 . . . . . . . . . Sentry 25 | . . . 8 . . . 9 1 . . . . 1 . . 6 . . . . . . . . . Hunter 12 | . . . . . . . . 1 . . . . 4 1 . 6 . . . . . . . . . Programmer 4 | . . . . . . . . . . . . . . . . 4 . . . . . . . . . Heavy 1 | . . . . . . . . . . . . . . . . 1 . . . . . . . . . Behemoth 4 | . . . . . . . . . . . . . 2 . . . . . . . . . . . 2 Cetus Guard 8 | . . . . . . . . . . . . . . 8 . . . . . . . . . . . Lightning 3 | . . . . . . . . . . . . . . . . 3 . . . . . . . . . Samaritan 1 | . . . . . . . . . . . . . . . . . . . . . 1 . . . . Assembled 13 | . . . . 13 . . . . . . . . . . . . . . . . . . . . . Guerrilla 1 | . . . . 1 . . . . . . . . . . . . . . . . . . . . . Mutant 1 | . . . . . . . . . . . . . . . . . . . . . 1 . . . . Best Kill Streak 14 | 3 6 1 6 7 . 4 8 7 6 4 . 1 12 5 . 14 1 . 2 3 3 1 6 . 1 Combat Bots Only 11 | . 4 . 3 6 . 4 6 3 . 4 . 1 3 4 . 11 . . . . 3 1 4 . 1 Max Kills in Single Turn 4 | 1 3 1 1 2 . 2 2 1 1 3 . 1 4 2 . 4 1 . 1 1 1 1 2 . 1 Gunslinging . | . . . . . . . . . . . . . . . . . . . . . . . . . . Exploded 3 | . 2 . . 2 . 2 2 1 . 3 . . 3 . . 2 . . . . . . 1 . . Melee 1 | . . . . . . . . 1 . . . 1 . . . . . . . . . . . . . Uniques/NPCs Destroyed . | . . . . . . . . . . . . . . . . . . . . . . . . . . Combat | -11 -10 -10 -9 -9 -9 -8 -8 -8 -7 -7 -7 -6 -6 -6 -6 -6 -5 -5 -5 -4 -4 -4 -3 -2 -1 -------- Run | Yrd Mat Min Mat Min Exi Min Mat Sto Fac Low Low Fac Ext Cet Arc Hub Fac Was Fac Fac Upp Upp Res Res Acc Hostile Shots Fired 1126 | . 51 . 100 68 . 5 135 73 2 14 . 14 115 14 . 330 . . 32 21 38 10 29 . 75 Missed 415 | . 14 . 26 15 . 1 38 37 1 8 . 7 54 6 . 116 . . 19 11 10 6 11 . 35 Damage Taken 12055 | . 700 . 908 1069 . 32 1453 539 59 112 . 74 679 144 366 3624 . . 144 309 306 57 702 . 778 Core 1701 | . 139 . 114 137 . 16 70 178 . 29 . 5 163 13 . 258 . . 25 125 114 12 138 . 165 Absorbed by Shields 433 | . . . . . . . . . . . . . 335 89 . . . . 9 . . . . . . Redirected to Shielding 176 | . . . . . . . . . . . . . . . . 85 . . . . . . . . 91 Regen/Repaired (Parts) 298 | . . . . . . . . 44 60 . . . . . . . . . 48 146 . . . . . Core Remaining (%) 75 | 100 . 44 . . . 33 . 54 . . 95 . . . . 48 . . 97 . . 78 89 100 89 Volleys Fired 640 | 5 52 9 129 36 . 3 161 14 3 6 . 5 74 9 6 112 3 . 4 . 1 . 5 . 3 Largest 2 | 2 2 2 2 2 . 1 2 1 1 1 . 1 2 2 2 2 1 . 1 . 1 . 1 . 1 Hottest 250 | 40 50 80 91 129 . 33 100 61 61 36 . 61 250 250 80 250 30 . 35 . 35 . 36 . 250 Shots Fired 1099 | 10 98 18 258 60 . 3 290 14 3 6 . 5 101 12 10 195 3 . 4 . 1 . 5 . 3 Gun 748 | 10 91 9 137 18 . . 220 8 3 . . 5 55 6 10 168 3 . 4 . 1 . . . . Cannon 273 | . . 9 121 25 . . 59 . . . . . 32 6 . 18 . . . . . . . . 3 Launcher 78 | . 7 . . 17 . 3 11 6 . 6 . . 14 . . 9 . . . . . . 5 . . Special . | . . . . . . . . . . . . . . . . . . . . . . . . . . Kinetic 626 | 10 91 9 129 9 . . 166 . . . . . 28 . 8 168 3 . 4 . 1 . . . . Thermal 395 | . . 9 129 34 . . 113 8 3 . . 5 59 12 2 18 . . . . . . . . 3 Explosive 78 | . 7 . . 17 . 3 11 6 . 6 . . 14 . . 9 . . . . . . 5 . . Electromagnetic . | . . . . . . . . . . . . . . . . . . . . . . . . . . Robot Hit Streak 16 | 6 9 2 16 6 . 4 15 8 2 2 . 2 7 6 14 12 4 . 2 . 3 . 6 . 2 Robot Miss Streak 14 | 1 3 3 4 7 . 1 8 1 1 3 . 1 14 3 2 6 . . 2 . . . 1 . 3 Penetration Max 1 | . . . . . . . . . . . . . 1 . . 1 . . . . . . . . . Secondary Targets 5 | . 1 . . . . . 2 . . . . . . . . 2 . . . . . . . . . Max Gunslinging Chain 1 | . 1 . . . . . 1 . . . . . . . . 1 . . . . . . . . . Shots Hit Robots 734 | 6 62 6 153 23 4 2 185 15 11 2 . 6 58 7 8 123 3 . 7 19 10 1 20 . 3 Core Hits 478 | 4 35 4 63 28 . 3 71 11 5 10 . 3 78 15 2 127 2 . 1 2 1 . 9 . 4 Critical Kills 16 | . . . 1 1 . . . . 1 . . . 6 . . 7 . . . . . . . . . Critical Parts Destroyed 38 | 1 . . . . . . . 1 3 . . 1 8 . . 9 . . 3 5 4 . 3 . . Critical Strikes 58 | 1 . . 1 2 . . 2 1 4 . . 2 14 . . 16 . . 3 5 4 . 3 . . Burn 4 | . . . . 1 . . 2 . . . . 1 . . . . . . . . . . . . . Destroy 33 | 1 . . 1 1 . . . . . . . . 14 . . 16 . . . . . . . . . Smash 21 | . . . . . . . . 1 4 . . 1 . . . . . . 3 5 4 . 3 . . Melee Attacks 164 | . 2 . 2 . 4 . 4 23 14 . . 9 . . . 1 . . 7 33 13 3 30 5 14 Impact 129 | . . . . . . . . 23 14 . . 9 . . . 1 . . 7 33 13 3 26 . . Slashing 24 | . . . 2 . . . 4 . . . . . . . . . . . . . . . 2 4 12 Piercing 5 | . . . . . . . . . . . . . . . . . . . . . . . 2 1 2 Sneak Attacks 38 | . 2 . 1 . 4 . . 2 8 . . 1 . . . . . . 2 10 1 . 7 . . Combat Hostiles . | . . . . . . . . . . . . . . . . . . . . . . . . . . Follow-up Attacks . | . . . . . . . . . . . . . . . . . . . . . . . . . . Damage Inflicted 28666 | 87 1246 108 2839 952 . 352 4394 805 1070 712 . 246 3511 983 217 6589 70 . 455 1636 529 33 1513 . 319 Guns 9580 | 87 701 36 1180 170 . . 2679 104 40 . . 84 895 99 217 3143 70 . 49 . 26 . . . . Cannons 4219 | . . 72 1578 245 . . 931 . . . . . 620 215 . 425 . . . . . . . . 133 Explosions 9267 | . 545 . . 537 . 352 783 103 . 712 . . 1996 669 . 2993 . . . . . . 391 . 186 Melee 5571 | . . . 81 . . . . 598 1030 . . 162 . . . . . . 406 1636 503 33 1122 . . Ramming 29 | . . . . . . . 1 . . . . . . . . 28 . . . . . . . . . Kinetic 7790 | 87 701 36 1058 70 . . 1915 . . . . . 418 . 217 3143 70 . 49 . 26 . . . . Thermal 9172 | . . 72 1700 345 . . 1695 104 40 . . 84 1454 983 . 2376 . . . . . . . . 319 Explosive 6036 | . 545 . . 537 . 352 783 103 . 712 . . 1639 . . 974 . . . . . . 391 . . Electromagnetic 68 | . . . . . . . . . . . . . . . . 68 . . . . . . . . . Impact 5395 | . . . . . . . . 598 1030 . . 162 . . . . . . 406 1636 503 33 1027 . . Slashing 81 | . . . 81 . . . . . . . . . . . . . . . . . . . . . . Piercing 95 | . . . . . . . . . . . . . . . . . . . . . . . 95 . . Highest Corruption 9 | . . . . . . . . . . . . . 1 . . 9 . . . 3 5 5 . . . Average Corruption 4 | . . . . . . . . . . . . . 1 . . 5 . . . 2 4 5 . . . Corruption Purged 1 | . . . . . . . . . . . . . 1 . . . . . . . . . . . . Corruption Blocked . | . . . . . . . . . . . . . . . . . . . . . . . . . . Effects 51 | . . . . . . . . . . . . . 2 . . 30 . . . 6 11 2 . . . Message Errors 13 | . . . . . . . . . . . . . 1 . . 7 . . . 1 3 1 . . . Matter Fused 12 | . . . . . . . . . . . . . 1 . . 7 . . . 2 2 . . . . Heat Flow Errors 5 | . . . . . . . . . . . . . . . . 2 . . . 1 2 . . . . Energy Discharges 6 | . . . . . . . . . . . . . . . . 4 . . . 1 1 . . . . Parts Rejected 1 | . . . . . . . . . . . . . . . . 1 . . . . . . . . . Parts Fused 2 | . . . . . . . . . . . . . . . . 1 . . . 1 . . . . . Data Loss (minor) 7 | . . . . . . . . . . . . . . . . 5 . . . . 1 1 . . . Data Loss (major) 1 | . . . . . . . . . . . . . . . . 1 . . . . . . . . . Misfires 1 | . . . . . . . . . . . . . . . . 1 . . . . . . . . . Alerts 2 | . . . . . . . . . . . . . . . . . . . . . 2 . . . . Weapon Failures 1 | . . . . . . . . . . . . . . . . 1 . . . . . . . . . Overload Shots . | . . . . . . . . . . . . . . . . . . . . . . . . . . Overflow Damage 2965 | . 14 . 38 43 . 41 67 164 479 . . 36 121 13 . 83 . . 308 828 313 8 409 . . Projectiles 86 | . . . 38 13 . . . . . . . . 6 . . 29 . . . . . . . . . Explosions 343 | . 14 . . 30 . 41 67 . . . . . 115 13 . 48 . . . . . . 15 . . Melee 2536 | . . . . . . . . 164 479 . . 36 . . . 6 . . 308 828 313 8 394 . . Knockbacks 13 | . . . . . . . . 1 1 . . . 1 . . . . . . 6 2 . 2 . . Impact 12 | . . . . . . . . 1 1 . . . . . . . . . . 6 2 . 2 . . Kinetic 1 | . . . . . . . . . . . . . 1 . . . . . . . . . . . . Secondary . | . . . . . . . . . . . . . . . . . . . . . . . . . . Self-Inflicted Damage 463 | . . . . 90 . . 5 . . 19 . . 35 . . 231 . . . . . . 83 . . Shots 12 | . . . . 3 . . 1 . . 1 . . 1 . . 4 . . . . . . 2 . . Rammed 3 | . . . . . . . 1 . . . . . . . . 2 . . . . . . . . . Targets Rammed 4 | . . . . . . . 1 . . . . . . . . 3 . . . . . . . . . Kicked . | . . . . . . . . . . . . . . . . . . . . . . . . . . Crushed 1 | . . . . . . . . . . . . . . . . 1 . . . . . . . . . Highest Temperature 498 | . 49 144 375 404 . . 243 72 106 11 . 46 259 254 . 498 15 . 163 101 272 2 258 . 325 Average Temperature 73 | . 31 49 71 218 . . 68 23 31 5 . 17 66 113 . 160 15 . 84 6 162 2 79 . 142 Received Heat Transfer 2527 | . 282 . 279 100 . . 711 225 . 9 . . 83 13 . 672 . . 9 9 . . 99 . 36 Effects 16 | . . . 1 4 . . 3 . . . . . 1 1 . 6 . . . . . . . . . Shutdowns 2 | . . . . 1 . . . . . . . . . . . 1 . . . . . . . . . Energy Bleed 3 | . . . . 1 . . . . . . . . 1 1 . . . . . . . . . . . Interference 7 | . . . . 2 . . 3 . . . . . . . . 2 . . . . . . . . . Matter Decay 1 | . . . . . . . . . . . . . . . . 1 . . . . . . . . . Short Circuit 1 | . . . 1 . . . . . . . . . . . . . . . . . . . . . . Damage (major) 2 | . . . . . . . . . . . . . . . . 2 . . . . . . . . . Siege Activations . | . . . . . . . . . . . . . . . . . . . . . . . . . . Robots Corrupted . | . . . . . . . . . . . . . . . . . . . . . . . . . . Combat Hostiles . | . . . . . . . . . . . . . . . . . . . . . . . . . . Parts Fried 54 | . . . . . . . . 6 4 . . 2 5 1 . . . . 6 17 4 1 8 . . Impact Corruptions 83 | . . . . . . . . 5 11 . . 1 . . . 1 . . 7 30 14 1 13 . . Robots Melted 25 | . . . . . . . . . . . . . 3 8 . 12 . . . . . . . . 2 Combat Hostiles 21 | . . . . . . . . . . . . . 2 8 . 9 . . . . . . . . 2 Parts Melted 116 | . . . 6 . . . 7 . . . . . 19 22 . 59 . . . . . . . . 3 Heat Transferred 28688 | . . 148 3219 703 . . 2775 185 74 . . 222 4224 4801 . 11671 . . . . . . . . 666 Parts Sabotaged . | . . . . . . . . . . . . . . . . . . . . . . . . . . Parts Stolen . | . . . . . . . . . . . . . . . . . . . . . . . . . . Parts Stripped . | . . . . . . . . . . . . . . . . . . . . . . . . . . Power Chain Reactions 1 | . . . . . . . . . . . . . . . . 1 . . . . . . . . . Alert | -11 -10 -10 -9 -9 -9 -8 -8 -8 -7 -7 -7 -6 -6 -6 -6 -6 -5 -5 -5 -4 -4 -4 -3 -2 -1 ------- Run | Yrd Mat Min Mat Min Exi Min Mat Sto Fac Low Low Fac Ext Cet Arc Hub Fac Was Fac Fac Upp Upp Res Res Acc Peak Influence 1647 | 15 227 15 416 156 . 126 483 528 307 . . 231 1118 931 614 1647 1170 362 369 422 . . 444 201 454 Initial 1100 | . 9 3 . 151 . . 48 169 179 . . 109 14 625 292 214 1100 362 253 81 . . 135 9 120 Average 272 | 5 43 4 161 54 . 12 268 281 197 . . 147 481 748 402 961 1053 362 244 291 . . 183 108 233 Maximum Alert Level 5 | . 1 . 2 . . . 2 2 1 . . 1 4 3 2 5 4 1 1 2 . . 2 1 2 Low Security (%) 52 | 100 95 100 57 100 . 100 31 40 61 . . 96 13 . . . . . 40 12 . . 50 97 58 Level 1 30 | . 4 . 40 . . . 54 52 38 . . 3 42 . 64 15 . 100 59 82 . . 48 2 23 Level 2 5 | . . . 1 . . . 14 7 . . . . 18 4 35 18 . . . 4 . . 1 . 17 Level 3 7 | . . . . . . . . . . . . . 20 96 . 20 72 . . . . . . . . Level 4 3 | . . . . . . . . . . . . . 4 . . 37 27 . . . . . . . . Level 5 . | . . . . . . . . . . . . . . . . . . . . . . . . . . High Security . | . . . . . . . . . . . . . . . . 7 . . . . . . . . . Max Security . | . . . . . . . . . . . . . . . . . . . . . . . . . . Squads Dispatched 71 | . 2 1 4 . . . 8 2 5 . . 4 6 1 . 21 . . 4 6 . . 6 . 1 Investigation 21 | . 2 1 . . . . . 1 4 . . . 2 1 . 1 . . 1 3 . . 5 . . Extermination 5 | . . . . . . . . . 1 . . 1 . . . 2 . . . 1 . . . . . Reinforcement 29 | . . . 4 . . . 3 1 . . . 3 3 . . 9 . . 2 2 . . 1 . 1 Assault 7 | . . . . . . . . . . . . . 1 . . 5 . . 1 . . . . . . Garrison 9 | . . . . . . . 5 . . . . . . . . 4 . . . . . . . . . Intercept . | . . . . . . . . . . . . . . . . . . . . . . . . . . Searches Triggered . | . . . . . . . . . . . . . . . . . . . . . . . . . . Construction Impeded 7 | . . . . . . . 1 . . . . . 3 . . 3 . . . . . . . . . Haulers Reinforced 4 | . . . . . . . . . . . . . . . . 2 . . . 1 . . 1 . . Active Scanning Responses . | . . . . . . . . . . . . . . . . . . . . . . . . . . Cargo Convoy Interrupts . | . . . . . . . . . . . . . . . . . . . . . . . . . . Stealth | -11 -10 -10 -9 -9 -9 -8 -8 -8 -7 -7 -7 -6 -6 -6 -6 -6 -5 -5 -5 -4 -4 -4 -3 -2 -1 --------- Run | Yrd Mat Min Mat Min Exi Min Mat Sto Fac Low Low Fac Ext Cet Arc Hub Fac Was Fac Fac Upp Upp Res Res Acc Distress Signals 36 | . 3 . 4 1 . . 4 2 . . . 1 2 1 . 9 . . 1 1 . . 7 . . Communications Jammed 13 | . . . . . . . . . . . . . . . . . . . . 6 . . . . 7 Distress Signals 13 | . . . . . . . . . . . . . . . . . . . . 6 . . . . 7 Times Spotted 429 | . 15 . 49 19 . 4 49 20 5 17 . 10 47 12 . 72 1 . 24 22 6 5 38 . 14 Peak Tracking Total 14 | . 4 . 4 8 . 4 5 14 1 5 . 4 7 5 . 9 1 . 9 4 5 5 6 . 10 Tactical Retreats 48 | . 2 . 1 . . . 2 2 . 6 . 2 2 . . 7 . . 5 7 2 1 6 . 3 Traps | -11 -10 -10 -9 -9 -9 -8 -8 -8 -7 -7 -7 -6 -6 -6 -6 -6 -5 -5 -5 -4 -4 -4 -3 -2 -1 ------- Run | Yrd Mat Min Mat Min Exi Min Mat Sto Fac Low Low Fac Ext Cet Arc Hub Fac Was Fac Fac Upp Upp Res Res Acc Traps Triggered 11 | . 1 . . . . . . . 2 . . . 1 . . . 1 . 1 2 . . 3 . . Indirectly . | . . . . . . . . . . . . . . . . . . . . . . . . . . Trap Hack Attempts 14 | . 12 . . . . . . . . . . . 2 . . . . . . . . . . . . Triggered . | . . . . . . . . . . . . . . . . . . . . . . . . . . Disarmed 5 | . 1 . . . . . . . . . . . . . . . . . . . . . . . 4 Reprogrammed 8 | . . . . . . . . . . . . . 2 . . . . . . . . . 6 . . Reused 4 | . . . 2 . . . . . . . . . . . . . . . . . . . 2 . . Traps Extracted . | . . . . . . . . . . . . . . . . . . . . . . . . . . Installed 3 | . . . 3 . . . . . . . . . . . . . . . . . . . . . . Triggered 5 | . . 1 2 . . . . . . . . . . . . . . . . . . . 2 . . Most Traps Carried 3 | . . 3 3 . . . . . . . . . . . . . . . . . . . . . . Machines | -11 -10 -10 -9 -9 -9 -8 -8 -8 -7 -7 -7 -6 -6 -6 -6 -6 -5 -5 -5 -4 -4 -4 -3 -2 -1 ---------- Run | Yrd Mat Min Mat Min Exi Min Mat Sto Fac Low Low Fac Ext Cet Arc Hub Fac Was Fac Fac Upp Upp Res Res Acc Machines Disabled 41 | . 1 . 2 . . 1 6 4 . . . . 6 2 . 15 . . . . 1 . 1 . 2 Max in Single Turn 3 | . 1 . 1 . . 1 1 1 . . . . 1 . . 3 . . . . 1 . 1 . 1 Garrison Access 7 | . . . . . . . 1 . . . . . . . . . . . 1 1 . . 2 1 1 Network Hub 2 | . . . . . . . . . . . . . . . . 2 . . . . . . . . . Energy Cycler 1 | . . . . . . . . . . . . . 1 . . . . . . . . . . . . Machines Repaired . | . . . . . . . . . . . . . . . . . . . . . . . . . . Machines Dismantled 1 | . . . . . . . . . . . . . . . . . . . 1 . . . . . . Machines Sabotaged . | . . . . . . . . . . . . . . . . . . . . . . . . . . Overloaded Fab Kills . | . . . . . . . . . . . . . . . . . . . . . . . . . . Hacking | -11 -10 -10 -9 -9 -9 -8 -8 -8 -7 -7 -7 -6 -6 -6 -6 -6 -5 -5 -5 -4 -4 -4 -3 -2 -1 --------- Run | Yrd Mat Min Mat Min Exi Min Mat Sto Fac Low Low Fac Ext Cet Arc Hub Fac Was Fac Fac Upp Upp Res Res Acc Machines Accessed 138 | . 9 1 11 1 2 1 9 7 17 . . 8 12 3 . 2 5 . 9 17 1 . 13 6 4 Terminals 93 | . 7 . 8 . . 1 5 6 11 . . 7 12 3 . 2 4 . 5 8 . . 7 4 3 Fabricators 7 | . . . . . . . . . 1 . . 1 . . . . . . 1 3 . . 1 . . Repair Stations 7 | . 1 . . . . . . 1 2 . . . . . . . . . 1 2 . . . . . Recycling Units 13 | . 1 . 1 . . . 1 . 2 . . . . . . . 1 . 1 2 . . 3 1 . Scanalyzers 6 | . . . 2 . . . 2 . . . . . . . . . . . 1 1 . . . . . Garrison Access 7 | . . . . . . . 1 . 1 . . . . . . . . . . 1 . . 2 1 1 Total Hacks 496 | . 24 1 53 1 2 2 28 18 46 . . 17 32 9 . 2 27 . 40 75 1 . 61 40 17 Successful 297 | . 14 1 30 1 2 1 22 9 30 . . 10 14 3 . 1 11 . 26 48 1 . 38 24 11 Failed 195 | . 9 . 23 . . 1 6 9 16 . . 7 17 6 . 1 15 . 14 26 . . 23 16 6 Catastrophic 34 | . . . 4 . . . . . 2 . . 2 2 3 . 1 4 . 3 6 . . 6 1 . Database Lockouts 4 | . 1 . . . . . . . . . . . 1 . . . 1 . . 1 . . . . . Manual 145 | . 9 . 13 . 1 2 13 4 12 . . 5 10 2 . 1 7 . 10 24 . . 13 19 . Terminals 380 | . 21 . 31 . . 2 16 15 31 . . 15 32 9 . 2 23 . 29 54 . . 52 33 15 Fabricators 18 | . . . . . . . . . 4 . . 2 . . . . . . 4 6 . . 2 . . Repair Stations 21 | . 2 . . . . . . 3 6 . . . . . . . . . 3 7 . . . . . Recycling Units 32 | . 1 . 5 . . . 3 . 4 . . . . . . . 4 . 2 4 . . 4 5 . Scanalyzers 30 | . . . 17 . . . 8 . . . . . . . . . . . 2 3 . . . . . Garrison Access 10 | . . . . . . . 1 . 1 . . . . . . . . . . 1 . . 3 2 2 Terminal Hacks 188 | . 11 1 12 1 2 1 8 6 16 . . 9 12 3 . 1 7 . 17 25 1 . 28 17 10 Record 33 | . . . . . 1 . . . 3 . . 4 2 2 . . 4 . 3 7 . . 6 1 . Part Schematic 3 | . . . . . . . . 2 . . . . . . . . . . 1 . . . . . . Robot Analysis 15 | . 2 . 2 . . 1 1 . 2 . . . . . . . . . . 2 . . 1 1 3 Prototype ID Bank 11 | . 3 . 1 . . . . . 1 . . 2 . . . 1 . . . 1 . . 2 . . Open Door 11 | . . 1 . 1 . . . 2 . . . 1 4 1 . . . . . . 1 . . . . Open DSF 1 | . . . . . . . . . . . . . . . . . . . . . . . . 1 . Level Access Points 4 | . . . . . . . . 1 . . . . . . . . . . . 1 . . 1 . 1 Branch Access Points 5 | . . . 1 . . . . 1 1 . . . . . . . . . . 1 . . 1 . . Emergency Access Points 3 | . . . . . . . . . . . . . . . . . . . 1 . . . . 2 . Machine Index 1 | . . . . . . . . . . . . . . . . . . . . . . . . 1 . Terminal Index 9 | . 1 . . . . . . . 1 . . 1 1 . . . . . 1 1 . . 1 1 1 Fabricator Index 1 | . . . . . . . . . . . . . . . . . . . . 1 . . . . . Repair Station Index 2 | . . . . . . . 1 . . . . . . . . . 1 . . . . . . . . Scanalyzer Index 3 | . . . . . . . . . . . . . . . . . 1 . . 1 . . 1 . . Garrison Index 2 | . . . . . . . . . . . . . . . . . . . . . . . . 1 1 Alert Level 9 | . . . 1 . . . . . 2 . . . . . . . . . 1 2 . . 2 1 . Unreport Threat 12 | . 2 . 3 . . . 1 . . . . . . . . . 1 . 2 . . . 3 . . Locate Traps 21 | . 1 . 2 . . . 2 . 1 . . . 2 . . . . . 4 1 . . 6 1 1 Disarm Traps 1 | . . . . . . . . . . . . . . . . . . . . . . . . . 1 Reprogram Traps 2 | . . . . . . . . . . . . . 1 . . . . . . . . . 1 . . Dispatch Records 2 | . . . . . . . . . 1 . . . . . . . . . . 1 . . . . . Patrol Status 1 | . . . . . . . . . . . . . . . . . . . . . . . . 1 . Transport Status 2 | . . . . . . . . . . . . . . . . . . . 1 . . . . 1 . Extermination Status 1 | . . . . . . . . . . . . . . . . . . . 1 . . . . . . Recall Investigation 4 | . . . . . . . . . 2 . . . 1 . . . . . . 1 . . . . . Recall Reinforcements 2 | . . . . . . . . . . . . 1 . . . . . . . 1 . . . . . Hauler Manifests 9 | . 1 . 1 . . . 1 . 1 . . . . . . . . . 1 1 . . 1 1 1 Registered Components 4 | . . . . . . . 1 . . . . . . . . . . . 1 . . . 1 1 . Registered Prototypes 3 | . . . . . . . . . . . . . . . . . . . . 1 . . 1 1 . Zone Layout 10 | . 1 . 1 . . . 1 . 1 . . . 1 . . . . . . 2 . . . 2 1 Derelict Proto ID Bank 1 | . . . . . 1 . . . . . . . . . . . . . . . . . . . . Fabricator Hacks 15 | . . . . . . . . . 3 . . 1 . . . . . . 3 6 . . 2 . . Network Status 3 | . . . . . . . . . 1 . . 1 . . . . . . 1 . . . . . . Load Schematic 6 | . . . . . . . . . 1 . . . . . . . . . 1 3 . . 1 . . Build 6 | . . . . . . . . . 1 . . . . . . . . . 1 3 . . 1 . . Repair Station Hacks 18 | . 1 . . . . . . 3 5 . . . . . . . . . 2 7 . . . . . Scan Component 11 | . 1 . . . . . . 2 3 . . . . . . . . . 1 4 . . . . . Repair 7 | . . . . . . . . 1 2 . . . . . . . . . 1 3 . . . . . Recycling Unit Hacks 13 | . 1 . 2 . . . . . 2 . . . . . . . 1 . 1 1 . . 4 1 . Report Inventory 1 | . . . 1 . . . . . . . . . . . . . . . . . . . . . . Retrieve Components 12 | . 1 . 1 . . . . . 2 . . . . . . . 1 . 1 1 . . 4 1 . Scanalyzer 27 | . . . 14 . . . 8 . . . . . . . . . . . 2 3 . . . . . Insert Component 11 | . . . 6 . . . 3 . . . . . . . . . . . 1 1 . . . . . Analyze 16 | . . . 8 . . . 5 . . . . . . . . . . . 1 2 . . . . . Garrison Access Hacks 6 | . . . . . . . 1 . . . . . . . . . . . . 1 . . 2 1 1 Seal Access 6 | . . . . . . . 1 . . . . . . . . . . . . 1 . . 2 1 1 Unauthorized Hacks 30 | . 1 . 2 . . . 5 . 4 . . . 2 . . . 3 . 1 5 . . 2 5 . Terminals 15 | . 1 . . . . . 2 . 2 . . . 2 . . . . . 1 3 . . 2 2 . Assimilate 8 | . . . . . . . . . 2 . . . 2 . . . . . 1 1 . . 2 . . Botnet 7 | . 1 . . . . . 2 . . . . . . . . . . . . 2 . . . 2 . Fabricators 1 | . . . . . . . . . 1 . . . . . . . . . . . . . . . . Report 1 | . . . . . . . . . 1 . . . . . . . . . . . . . . . . Repair Stations . | . . . . . . . . . . . . . . . . . . . . . . . . . . Recycling Units 14 | . . . 2 . . . 3 . 1 . . . . . . . 3 . . 2 . . . 3 . Monitor 3 | . . . . . . . 1 . . . . . . . . . 1 . . . . . . 1 . Reject 5 | . . . 1 . . . 1 . . . . . . . . . 1 . . 1 . . . 1 . Mask 6 | . . . 1 . . . 1 . 1 . . . . . . . 1 . . 1 . . . 1 . Scanalyzers . | . . . . . . . . . . . . . . . . . . . . . . . . . . Garrison Access . | . . . . . . . . . . . . . . . . . . . . . . . . . . Data Cores Recovered 3 | . . . 1 . . . . . . . . . . . . . 1 . . . . . 1 . . Used 2 | . . . 1 . . . . . . . . . . . . . 1 . . . . . . . . Hacking Detections 112 | . 9 . 10 . . 1 7 6 17 . . 6 11 4 . 2 4 . 8 12 . . 8 3 4 Full Trace Events 18 | . 2 . 2 . . . . 1 4 . . . 2 1 . 1 . . 1 3 . . 1 . . Feedback Events 1 | . . . . . . . . . . . . . 1 . . . . . . . . . . . . Corruption 1 | . . . . . . . . . . . . . 1 . . . . . . . . . . . . Feedback Blocked . | . . . . . . . . . . . . . . . . . . . . . . . . . . Robot Schematics Acquired . | . . . . . . . . . . . . . . . . . . . . . . . . . . Robots Built . | . . . . . . . . . . . . . . . . . . . . . . . . . . Authchips . | . . . . . . . . . . . . . . . . . . . . . . . . . . Time . | . . . . . . . . . . . . . . . . . . . . . . . . . . Total Robot Build Rating . | . . . . . . . . . . . . . . . . . . . . . . . . . . Part Schematics Acquired 14 | . . . 6 . . . 3 2 . . . . . . . . . . 2 1 . . . . . Parts Built 6 | . . . . . . . . . 1 . . . . . . . . . 1 3 . . 1 . . Authchips . | . . . . . . . . . . . . . . . . . . . . . . . . . . Time 570 | . . . . . . . . . 116 . . . . . . . . . 44 276 . . 134 . . Total Part Build Rating 25 | . . . . . . . . . 3 . . . . . . . . . 4 14 . . 4 . . Parts Repaired 7 | . . . . . . . . 1 2 . . . . . . . . . 1 3 . . . . . Time 399 | . . . . . . . . 26 136 . . . . . . . . . 35 202 . . . . . Parts Recycled . | . . . . . . . . . . . . . . . . . . . . . . . . . . Recycled Matter . | . . . . . . . . . . . . . . . . . . . . . . . . . . Retrieved Matter . | . . . . . . . . . . . . . . . . . . . . . . . . . . Retrieved Components 40 | . 10 . 9 . . . . . 1 . . . . . . . 1 . 1 3 . . 11 4 . Parts Scanalyzed 11 | . . . 6 . . . 3 . . . . . . . . . . . 1 1 . . . . . Part Schematics Acquired 11 | . . . 6 . . . 3 . . . . . . . . . . . 1 1 . . . . . Parts Damaged 1 | . . . . . . . 1 . . . . . . . . . . . . . . . . . . Bothacking | -11 -10 -10 -9 -9 -9 -8 -8 -8 -7 -7 -7 -6 -6 -6 -6 -6 -5 -5 -5 -4 -4 -4 -3 -2 -1 ------------ Run | Yrd Mat Min Mat Min Exi Min Mat Sto Fac Low Low Fac Ext Cet Arc Hub Fac Was Fac Fac Upp Upp Res Res Acc Used RIF Installer . | . . . . . . . . . . . . . . . . . . . . . . . . . . Robots Hacked 5 | . 1 . . . 4 . . . . . . . . . . . . . . . . . . . . Non-combat 4 | . 1 . . . 3 . . . . . . . . . . . . . . . . . . . . Combat 1 | . . . . . 1 . . . . . . . . . . . . . . . . . . . . Robot Hacks Applied 5 | . 1 . . . 4 . . . . . . . . . . . . . . . . . . . . parse_system 5 | . 1 . . . 4 . . . . . . . . . . . . . . . . . . . . Relay Couplers Released 2 | . . . . . . . . . . . . . . . . . . . 2 . . . . . . Machine Destruction 2 | . . . . . . . . . . . . . . . . . . . 2 . . . . . . Fabnet Peak Effective % . | . . . . . . . . . . . . . . . . . . . . . . . . . . Robots Rewired 6 | . . . . . . . . . . . . . 3 . . . . . . . 3 . . . . Allies Hacked . | . . . . . . . . . . . . . . . . . . . . . . . . . . Hacks Repelled . | . . . . . . . . . . . . . . . . . . . . . . . . . . Allies | -11 -10 -10 -9 -9 -9 -8 -8 -8 -7 -7 -7 -6 -6 -6 -6 -6 -5 -5 -5 -4 -4 -4 -3 -2 -1 -------- Run | Yrd Mat Min Mat Min Exi Min Mat Sto Fac Low Low Fac Ext Cet Arc Hub Fac Was Fac Fac Upp Upp Res Res Acc Total Allies 22 | . . . . . . . . . 2 . . . 9 5 . . . . 1 1 3 . 1 . . Largest Group 6 | . . . . . . . . . 2 . . . 5 6 5 3 . . 1 1 3 2 2 . . Highest-Rated Group 511 | . . . . . . . . . 36 . . . 265 511 480 267 . . 26 10 138 87 87 . . Highest-Rated Ally 159 | . . . . . . . . . 26 . . . 159 145 96 96 . . 26 10 46 46 46 . . Total Orders 12 | . . . . . . . . . 1 . . . . . . . 3 . . 1 3 2 . . 2 STAY 2 | . . . . . . . . . 1 . . . . . . . . . . 1 . . . . . ROAM 2 | . . . . . . . . . . . . . . . . . 2 . . . . . . . . EXPLORE 4 | . . . . . . . . . . . . . . . . . 1 . . . 1 1 . . 1 RETURN 4 | . . . . . . . . . . . . . . . . . . . . . 2 1 . . 1 Ally Attacks 159 | . . . . . . . . . . . . . 88 17 18 9 . . . . 12 13 2 . . Total Damage 4678 | . . . . . . . . . . . . . 2646 332 753 331 . . . . 302 287 27 . . Kills 38 | . . . . . . . . . . . . . 22 2 8 1 . . . . 1 4 . . . Allies Corrupted . | . . . . . . . . . . . . . . . . . . . . . . . . . . Allies Melted 1 | . . . . . . . . . . 1 . . . . . . . . . . . . . . . Intel | -11 -10 -10 -9 -9 -9 -8 -8 -8 -7 -7 -7 -6 -6 -6 -6 -6 -5 -5 -5 -4 -4 -4 -3 -2 -1 ------- Run | Yrd Mat Min Mat Min Exi Min Mat Sto Fac Low Low Fac Ext Cet Arc Hub Fac Was Fac Fac Upp Upp Res Res Acc Robot Analysis Total 15 | . 2 . 2 . . 1 1 . 2 . . . . . . . . . . 2 . . 1 1 3 Derelict Logs Recovered 6 | . . 2 . 1 . . . . . 2 . . . . . . . . . . 1 . . . . Drone Launches 22 | . . . . . . . . 10 . . . . . . . . 3 . . . 3 3 . . 3 Drone Recoveries 14 | . . . . . . . . 2 . . . . . . . . 3 . . . 3 3 . . 3 Exploration | -11 -10 -10 -9 -9 -9 -8 -8 -8 -7 -7 -7 -6 -6 -6 -6 -6 -5 -5 -5 -4 -4 -4 -3 -2 -1 ------------- Run | Yrd Mat Min Mat Min Exi Min Mat Sto Fac Low Low Fac Ext Cet Arc Hub Fac Was Fac Fac Upp Upp Res Res Acc Turns Passed 20894 | 93 1832 1379 3848 1144 474 341 2449 422 871 323 59 400 963 750 122 1510 286 78 331 868 431 81 1340 168 331 Spaces Moved 19819 | 50 673 419 1387 401 372 269 921 559 2177 842 202 989 1589 489 56 749 473 314 725 1618 614 123 2824 390 594 Core 26 | 11 2 . . . . . . 1 . . . . 3 . . . . . . . . . 9 . . Treads 4022 | 3 532 419 1387 215 . . 578 . . . . . . 207 56 625 . . . . . . . . . Legs . | . . . . . . . . . . . . . . . . . . . . . . . . . . Wheels 1598 | 36 139 . . 186 372 269 253 . . . . . 61 282 . . . . . . . . . . . Hover . | . . . . . . . . . . . . . . . . . . . . . . . . . . Flight 14173 | . . . . . . . 90 558 2177 842 202 989 1525 . . 124 473 314 725 1618 614 123 2815 390 594 Fastest Speed 5 | 50 90 320 238 123 123 123 28 26 5 23 23 5 5 95 160 5 23 23 11 11 23 23 11 35 31 Average Speed 79 | 109 223 320 240 251 123 123 197 28 23 23 23 22 41 123 160 138 23 23 22 23 44 23 36 35 35 Slowest Speed 480 | 200 400 320 317 480 123 123 465 250 96 23 23 23 450 160 160 163 88 23 91 88 94 23 350 35 122 Overloaded Moves 178 | . . . . . . . . . 6 . . 4 4 . . 29 . . 18 9 . . 46 . 62 Propulsion Burnouts . | . . . . . . . . . . . . . . . . . . . . . . . . . . Robots Hopped 88 | . . . . . . . . 6 26 . . 8 5 . . . 5 . 6 10 . . 18 2 2 Cave-ins Triggered . | . . . . . . . . . . . . . . . . . . . . . . . . . . Exploration Rate (%) 59 | 3 94 80 89 83 86 56 75 74 50 92 22 24 95 92 76 64 15 96 25 40 86 13 76 16 23 Regions Visited 25 Branch Regions 13 Pre-discovered Areas 2 | . . . . 1 1 . . . . . . . . . . . . . . . . . . . . Known Exits Taken 7 | . . . 1 . . . 1 1 1 . . . . . . . . . . 1 . 1 1 . . Unknown Exits Taken 16 | 1 1 1 . 1 1 1 . . . 1 1 1 1 1 1 1 . . 1 . 1 . . 1 . Scrap Searched 10 | . . 1 . 1 . . . . . 1 1 . . . . . . . . . 4 2 . . . Spaces Dug 94 | . . . 1 6 . . 10 24 4 . . 4 . . . 17 . . 1 11 . . 9 4 3 Terrain Destroyed 944 | . 15 . 1 86 . 23 73 43 4 39 . 4 130 3 3 454 . . 2 11 . . 46 4 3 Melee 50 | . . . 1 . . . 4 8 4 . . 4 . . . 1 . . 1 11 . . 9 4 3 Projectile 67 | . . . . 3 . . 13 . . . . . 15 . 3 32 . . 1 . . . . . . AOE 827 | . 15 . . 83 . 23 56 35 . 39 . . 115 3 . 421 . . . . . . 37 . . Terrain Rammed . | . . . . . . . . . . . . . . . . . . . . . . . . . . Walls Destroyed . | . . . . . . . . . . . . . . . . . . . . . . . . . . Machines Disabled . | . . . . . . . . . . . . . . . . . . . . . . . . . . Actions | -11 -10 -10 -9 -9 -9 -8 -8 -8 -7 -7 -7 -6 -6 -6 -6 -6 -5 -5 -5 -4 -4 -4 -3 -2 -1 --------- Run | Yrd Mat Min Mat Min Exi Min Mat Sto Fac Low Low Fac Ext Cet Arc Hub Fac Was Fac Fac Upp Upp Res Res Acc Total 23506 | 76 902 443 1642 478 387 274 1284 765 2491 961 213 1133 1781 635 78 1034 641 319 859 2023 745 169 3071 412 690 Wait 1858 | . 108 . 29 5 . . 56 128 240 111 12 111 29 82 16 63 143 . 85 329 87 40 109 15 60 Move 19631 | 49 672 418 1386 400 371 268 920 546 2130 841 201 975 1578 488 55 748 463 313 714 1597 613 122 2788 386 589 Hop 75 | . . . . . . . . 6 20 . . 5 5 . . . 5 . 4 10 . . 17 1 2 Pick Up 259 | 12 28 8 30 9 4 . 28 12 12 . . 7 12 19 . 19 5 1 6 9 1 1 27 1 8 Fast Attach 92 | . . . 5 3 . . 12 3 11 . . 4 1 1 . 5 7 2 1 8 1 . 28 . . Attach 147 | 7 8 . 4 9 3 . 14 2 7 . . 2 20 10 . 28 . . 1 7 1 . 12 3 9 Detach 45 | . . . . 1 . . 4 . 1 . . . 17 4 . 8 . . 1 . 1 1 5 . 2 Swap 167 | 3 12 2 20 5 2 3 28 13 13 3 . 4 11 3 1 20 5 . 8 4 1 1 3 1 1 Drop 297 | . 8 6 34 10 3 . 56 14 22 . . 11 5 19 . 27 10 3 6 8 2 1 47 1 4 Fire 640 | 5 52 9 129 36 . 3 161 14 3 6 . 5 74 9 6 112 3 . 4 . 1 . 5 . 3 Melee 161 | . 2 . 2 . 4 . 4 23 14 . . 9 . . . 1 . . 7 33 13 3 30 4 12 Ram 1 | . . . . . . . 1 . . . . . . . . . . . . . . . . . . Kick . | . . . . . . . . . . . . . . . . . . . . . . . . . . Crush 3 | . . . . . . . . . . . . . . . . 3 . . . . . . . . . Escape Stasis 71 | . . . . . . . . . 18 . . . 18 . . . . . 17 18 . . . . . Rewire 33 | . . . . . . . . . . . . . 9 . . . . . . . 24 . . . . Trap 17 | . 12 . 3 . . . . . . . . . 2 . . . . . . . . . . . . Miscellaneous 9 | . . . . . . . . 4 . . . . . . . . . . 5 . . . . . . Route ------- -11/Scrapyard -10/Materials (discovered 4 exits: *Mat x3 / *Min) -10/Mines -9/Materials (discovered 5 exits: *Mat x3 / *Min x2) -9/Mines (discovered 2 exits: *Mat / *Exi) -9/Exiles -8/Mines -8/Materials (discovered 3 exits: *Fac x2 / *Sto) -8/Storage (discovered 2 exits: *Fac / Rec) -7/Factory (discovered 4 exits: *Fac x2 / *Low x2) -7/Lower Caves -7/Lower Caves -6/Factory (discovered 3 exits: *Fac / [*Low] / *Ext) -6/Extension (discovered 3 exits: *Fac x2 / *Cet) -6/Cetus (discovered 3 exits: *Fac x2 / [*Arc]) -6/Archives -6/Hub_04(d) (discovered 2 exits: *Fac x2) -5/Factory (discovered 2 exits: *Fac / [*Upp]) -5/Waste -5/Factory -4/Factory (discovered 6 exits: *Res x4 / *Upp x2) -4/Upper Caves -4/Upper Caves -3/Research (discovered 6 exits: *Res x3 / *Arm / *Tes x2) -2/Research (discovered 2 exits: *Acc / DSF) -1/Access To Epsilon Eridani History --------- Turn | Location | Event 30 | -11/Scrapyard | Discovered new exit (range 15) 94 | -11/Scrapyard | Entered Materials 163 | -10/Materials | Discovered new exit (range 14) 324 | -10/Materials | Discovered new exit (range 16) 325 | -10/Materials | Build established: Mutant 618 | -10/Materials | Core integrity fell below 50% 704 | -10/Materials | Central database locked down 1015 | -10/Materials | Discovered new exit (range 15) 1622 | -10/Materials | Discovered new exit (range 11) 1926 | -10/Materials | Entered Mines 2022 | -10/Mines | Learned Materials emergency access door positions 2115 | -10/Mines | A weapon hastily lodged in a ceiling crevice suddenly fell to the ground 2174 | -10/Mines | Discovered new exit (range 5) 2902 | -10/Mines | Found a hidden stash of uninstalled traps 2993 | -10/Mines | Met a Derelict shopkeep closing up shop 3305 | -10/Mines | Entered Materials 3305 | -9/Materials | Evolved 2 slots: Propulsion x1, Utility x1 4589 | -9/Materials | Build established: Scavenger-Mutant 4926 | -9/Materials | Discovered new exit (range 11) 5577 | -9/Materials | Build established: Mutant 5636 | -9/Materials | Discovered new exit (range 4) 6309 | -9/Materials | Discovered new exit (range 3) 6842 | -9/Materials | Discovered new exit (range 4) 6890 | -9/Materials | Identified exit to Mines 7153 | -9/Materials | Entered Mines 7181 | -9/Mines | Found the Drone Emporium 7191 | -9/Mines | Met a Derelict bent on vengeance 7197 | -9/Mines | Found Prototype Device 7197 | -9/Mines | Identified Decoy Drone Bay 7261 | -9/Mines | Received a Rocket Launcher from a helpful Derelict 7277 | -9/Mines | Learned location of Zion (-6) 7390 | -9/Mines | Assembled infested the area 7395 | -9/Mines | Assisted by a Guerilla fighting off Assembled 7486 | -9/Mines | Core integrity fell below 50% 7502 | -9/Mines | Lost 3 parts (1p1u1w) 7807 | -9/Mines | Discovered new exit (range 5) 8139 | -9/Mines | Deemed a non-threat by the Exiles lab entrance 8140 | -9/Mines | Discovered new exit (range 5) 8297 | -9/Mines | Entered Exiles 8327 | -9/Exiles | Met 8R-AWN 8353 | -9/Exiles | Met EX-HEX 8395 | -9/Exiles | Met EX-BIN 8398 | -9/Exiles | Build established: Scavenger-Mutant 8411 | -9/Exiles | Aligned with FarCom system 8412 | -9/Exiles | Given EX-Vault access code 8440 | -9/Exiles | Opened EX-Vault 8451 | -9/Exiles | Found Skeleton Box 8458 | -9/Exiles | Found Supersonic Drone Bay 8469 | -9/Exiles | Found Firepult 8496 | -9/Exiles | Warned to stay clear of 0b10 Research branches 8529 | -9/Exiles | Met EX-DEC 8576 | -9/Exiles | Visited The Gauntlet 8758 | -9/Exiles | Discovered new exit (range 12) 8771 | -9/Exiles | Left Exiles lab with Firepult 8771 | -9/Exiles | Entered Mines 9085 | -8/Mines | Discovered new exit (range 14) 9112 | -8/Mines | Entered Materials 9112 | -8/Materials | Evolved 2 slots: Propulsion x1, Utility x1 9113 | -8/Materials | Identified exit to Storage 9531 | -8/Materials | Garrison activated, responded to threat 9548 | -8/Materials | Discovered new exit (range 8) 9688 | -8/Materials | Garrison activated, responded to threat 10017 | -8/Materials | Garrison activated, responded to threat 10711 | -8/Materials | Discovered new exit (range 13) 11561 | -8/Materials | Entered Storage 11612 | -8/Storage | Repaired Med. Storage Unit 11784 | -8/Storage | Build established: Hacker-Sprinter 11916 | -8/Storage | Identified exit to Recycling 11916 | -8/Storage | Identified exit to Factory 11937 | -8/Storage | Lost 7 allies 11983 | -8/Storage | Entered Factory 11983 | -7/Factory | Evolved 2 slots: Propulsion x1, Utility x1 12135 | -7/Factory | Fabricated Imp. VTOL Module (x1) 12162 | -7/Factory | Discovered new exit (range 16) 12256 | -7/Factory | Discovered new exit (range 12) 12309 | -7/Factory | Repaired Broken Imp. VTOL Module 12377 | -7/Factory | Repaired Imp. VTOL Module? 12571 | -7/Factory | Discovered new exit (range 11) 12844 | -7/Factory | Identified exit to Lower Caves 12854 | -7/Factory | Entered Lower Caves 12900 | -7/Lower Caves | Learned Factory trap positions 12948 | -7/Lower Caves | Attracted the attention of an 0b10 outpost 13043 | -7/Lower Caves | Spotted B-75 Beast 13120 | -7/Lower Caves | Encountered a Warlord checkpoint 13121 | -7/Lower Caves | Discovered new exit (range 8) 13138 | -7/Lower Caves | Learned 8 Factory zone layouts 13177 | -7/Lower Caves | Entered another Lower Caves area 13187 | -7/Lower Caves | Discovered new exit (range 10) 13236 | -7/Lower Caves | Entered Factory 13236 | -6/Factory | Evolved 2 slots: Utility x2 13238 | -6/Factory | Loaded intel: 87 trap records 13535 | -6/Factory | Discovered new exit (range 21) 13551 | -6/Factory | Discovered new exit (range 21) 13630 | -6/Factory | Discovered new exit (range 6) 13636 | -6/Factory | Entered Extension 13661 | -6/Extension | Spotted B-75 Beast 13685 | -6/Extension | Rescued a captive Derelict 13690 | -6/Extension | Rescued a captive Derelict 13700 | -6/Extension | Central database locked down 13735 | -6/Extension | Rescued A7 13908 | -6/Extension | Destroyed B-75 Beast 13921 | -6/Extension | Spotted B-75 Beast 13927 | -6/Extension | Destroyed B-75 Beast 13945 | -6/Extension | Discovered new exit (range 3) 13982 | -6/Extension | Rescued a captive Derelict 14110 | -6/Extension | Energy Cycler disabled 14111 | -6/Extension | Rescued a captive Derelict 14111 | -6/Extension | Rescued a captive Derelict 14128 | -6/Extension | Discovered new exit (range 13) 14129 | -6/Extension | Discovered new exit (range 6) 14336 | -6/Extension | First assault squad dispatched 14336 | -6/Extension | Disrupted transfer network 14599 | -6/Extension | Entered Cetus 14599 | -6/Cetus | Accompanied by 3 allies (A7) 14604 | -6/Cetus | Acquired a Cetus Manufacturing Module code from A7 14613 | -6/Cetus | Spotted Cetus Guard 14613 | -6/Cetus | Spotted Cetus Guard 14613 | -6/Cetus | Spotted Cetus Guard 14613 | -6/Cetus | Spotted Cetus Guard 14617 | -6/Cetus | Destroyed Cetus Guard 14619 | -6/Cetus | Destroyed Cetus Guard 14628 | -6/Cetus | Destroyed Cetus Guard 14629 | -6/Cetus | Destroyed Cetus Guard 14735 | -6/Cetus | Extracted ID and sensor layout for unrecognized location from A7's data core 14779 | -6/Cetus | Started Cetus Manufacturing Module 14804 | -6/Cetus | Manufactured an Enhanced Grunt 14829 | -6/Cetus | Manufactured an Enhanced Grunt 14854 | -6/Cetus | Manufactured an Enhanced Grunt 14879 | -6/Cetus | Manufactured an Enhanced Grunt 14904 | -6/Cetus | Manufactured an Enhanced Grunt 14930 | -6/Cetus | Discovered new exit (range 21) 14961 | -6/Cetus | Spotted Cetus Guard 14965 | -6/Cetus | Spotted Cetus Guard 14968 | -6/Cetus | Spotted Cetus Guard 14970 | -6/Cetus | Spotted Cetus Guard 14971 | -6/Cetus | Destroyed Cetus Guard 14972 | -6/Cetus | Destroyed Cetus Guard 14974 | -6/Cetus | Destroyed Cetus Guard 14974 | -6/Cetus | Destroyed Cetus Guard 14976 | -6/Cetus | Discovered new exit (range 22) 14989 | -6/Cetus | Met Revision 17 15085 | -6/Cetus | Build established: Scavenger-Skirmisher 15223 | -6/Cetus | Discovered new exit (range 21) 15349 | -6/Cetus | Entered Archives 15349 | -6/Archives | Accompanied by 5 allies 15400 | -6/Archives | Met Zhirov 15406 | -6/Archives | Reinforcements dispatched to Archives 15408 | -6/Archives | Discovered new exit (range 21) 15451 | -6/Archives | Reinforcements dispatched to Archives 15471 | -6/Archives | Zhirov detonated Archives 15471 | -6/Archives | Entered Hub_04(d) 15471 | -6/Hub_04(d) | Accompanied by 3 allies 15476 | -6/Hub_04(d) | Discovered new exit (range 9) 15645 | -6/Hub_04(d) | Spotted B-75 Beast 15681 | -6/Hub_04(d) | Lost 3 allies 15821 | -6/Hub_04(d) | First assault squad dispatched 15898 | -6/Hub_04(d) | Garrison activated, responded to threat 15939 | -6/Hub_04(d) | Destroyed 11 combat bots 16091 | -6/Hub_04(d) | Discovered new exit (range 6) 16261 | -6/Hub_04(d) | Destroyed 7 combat bots 16332 | -6/Hub_04(d) | Network Hub disabled 16352 | -6/Hub_04(d) | Spotted Lightning 16354 | -6/Hub_04(d) | Spotted Lightning 16357 | -6/Hub_04(d) | Spotted Lightning 16361 | -6/Hub_04(d) | Destroyed Lightning 16363 | -6/Hub_04(d) | Destroyed Lightning 16399 | -6/Hub_04(d) | Destroyed Lightning 16447 | -6/Hub_04(d) | Found Prototype Energy Cannon 16459 | -6/Hub_04(d) | Found Prototype Device 16459 | -6/Hub_04(d) | Identified Exp. Phase Shifter 16577 | -6/Hub_04(d) | Identified EMDS 16605 | -6/Hub_04(d) | Network Hub disabled 16795 | -6/Hub_04(d) | Garrison activated, responded to threat 16865 | -6/Hub_04(d) | Core integrity fell below 50% 16866 | -6/Hub_04(d) | High security lockdown imminent 16946 | -6/Hub_04(d) | High security lockdown engaged 16981 | -6/Hub_04(d) | Entered Factory 16981 | -5/Factory | Evolved 2 slots: Utility x2 16992 | -5/Factory | Discovered new exit (range 11) 17230 | -5/Factory | Discovered new exit (range 15) 17231 | -5/Factory | Central database locked down 17267 | -5/Factory | Sucked down chute 17267 | -5/Factory | Entered Waste 17267 | -5/Waste | The area was eerily silent 17281 | -5/Waste | Discovered new exit (range 12) 17305 | -5/Waste | Build established: Hacker-Ninja 17345 | -5/Waste | Entered Factory 17469 | -5/Factory | Fabricated Cld. VTOL Module (x1) 17559 | -5/Factory | Spotted B-75 Beast 17653 | -5/Factory | Repaired Cld. VTOL Module 17674 | -5/Factory | Discovered new exit (range 13) 17676 | -5/Factory | Entered another Factory area 17676 | -4/Factory | Evolved 2 slots: Utility x2 17784 | -4/Factory | Identified exit to Upper Caves 17835 | -4/Factory | Fabricated Imp. Hacking Suite? 17883 | -4/Factory | Discovered new exit (range 17) 17902 | -4/Factory | Identified exit to Research 17999 | -4/Factory | Fabricated Imp. Hacking Suite? 18065 | -4/Factory | Fabricated Cld. VTOL Module? 18209 | -4/Factory | Repaired Cld. VTOL Module 18272 | -4/Factory | Repaired Imp. Fusion Compressor 18344 | -4/Factory | Repaired Cld. VTOL Module 18476 | -4/Factory | Spotted B-86 Titan 18508 | -4/Factory | Central database locked down 18544 | -4/Factory | Entered Upper Caves 18559 | -4/Upper Caves | Attracted the attention of an 0b10 checkpoint 18604 | -4/Upper Caves | Attacked by a delusional Derelict stockpiling Unaware 18718 | -4/Upper Caves | Spotted B-86 Titan 18774 | -4/Upper Caves | Discovered new exit (range 24) 18812 | -4/Upper Caves | Learned location of 1 exit from Research 18820 | -4/Upper Caves | Allies destroyed B-86 Titan 18975 | -4/Upper Caves | Entered another Upper Caves area 18975 | -4/Upper Caves | Accompanied by 2 allies 18985 | -4/Upper Caves | Attracted the attention of an 0b10 checkpoint 19030 | -4/Upper Caves | Discovered exit to Research (range 3) 19056 | -4/Upper Caves | Entered Research 19056 | -3/Research | Accompanied by 2 allies 19056 | -3/Research | Evolved 2 slots: Utility x2 19057 | -3/Research | Identified exit to Research 19256 | -3/Research | Revision forces began assault on 0b10 19261 | -3/Research | Spotted B-86 Titan 19299 | -3/Research | Met up with Revision 17++ 19651 | -3/Research | Build established: Hacker-Assassin 19701 | -3/Research | Identified exit to Armory 19701 | -3/Research | Identified exit to Testing 19756 | -3/Research | Research terminal network offline 19865 | -3/Research | Fabricated Cld. VTOL Module? 19954 | -3/Research | Spotted B-86 Titan 20086 | -3/Research | Found Prototype Slashing Weapon 20086 | -3/Research | Identified Molecular Scythe 20089 | -3/Research | Found Molecular Scythe 20091 | -3/Research | Found Molecular Scythe 20166 | -3/Research | Found Prototype Processor 20166 | -3/Research | Identified Spectral Analyzer 20194 | -3/Research | Found Prototype Device 20194 | -3/Research | Identified Exp. Shield Generator 20304 | -3/Research | Build established: Hacker-Ninja 20339 | -3/Research | Found Prototype Device 20339 | -3/Research | Identified Exp. Thermal Shield 20367 | -3/Research | Spotted B-86 Titan 20396 | -3/Research | Entered another Research area 20396 | -2/Research | Evolved 2 slots: Utility x2 20424 | -2/Research | Identified exit to DSF 20543 | -2/Research | Discovered new exit (range 14) 20564 | -2/Research | Entered Access 20564 | -1/Access | Evolved 2 slots: Utility x2 20611 | -1/Access | Spotted B-99 Colossus 20668 | -1/Access | Identified exit to Surface 20751 | -1/Access | Spotted B-99 Colossus 20792 | -1/Access | Lost 3 parts (3u) 20811 | -1/Access | Spotted B-99 Colossus 20817 | -1/Access | Destroyed B-99 Colossus 20844 | -1/Access | Spotted B-99 Colossus 20848 | -1/Access | Destroyed B-99 Colossus 20856 | -1/Access | Found Prototype Ballistic Gun 20857 | -1/Access | Identified Multirail 20895 | *** | Escaped! Last Messages --------------- 20845_ Slug penetrates Earth. 20845_ Slug penetrates Wall. 20845_ Penetrated by Slug. 20845_ Slug penetrates Repair Station. 20848_ B-99 Colossus critical meltdown. 20848_ Adv. Cooling System melted. 20850_ Dropped Firepult. 20852_ Acquired Firepult. 20856_ Acquired Prototype Ballistic Gun. 20857_ Identified Multirail. 20858_ Drone sends a signal. 20858_ Dropped Multirail. 20861_ Acquired Adv. Coolant Injector. 20862_ Acquired 78 matter. 20863_ Acquired 10 matter. 20866_ Sealed Heavy Doors breached. 20891_ Main Access Shell breached. [Achievement: 20k Club] [Achievement: 30k Club] [Achievement: Epsilon Run] Map ----- +----------------------------------------------------+ | ??????????????????????# # [ | | ??????????????????????# ! ! # | | ??????????????????????# ######### | | ??????????????????????# % #???????? | | ??????????????????????# #???????? | | ??????????????????????# % #???????? | | ??????????????????????+ = #???????? | | ??????????????????????# "##############???????? | | ??????????????????????# ###???????????????????? | | ???????????????????#### h""##??????????????????? | | ???????????????????# #??????????????????? | | ???????????????????# #??????????????????? | | ???????????????????# [ #??????????????????? | | ???????????????????#[!] !* #??????????????????? | | ???????????????????# %*! [%] #??????????????????? | | ???????????????????#==! ==! #??????????????????? | | ???????????????????# #??????????????????? | | ???????????????????#""""""" ""#??????????????????? | | ???????????o??????????????" "????????????????????? | | ??????????????????????????" "????????????????????? | | ???????????????????#""""""" ""#??????????????????? | | ???????????????????# #??????????????????? | | ???????????????????# """""" #??????????????????? | | ??????????????????????" " #??????????????????? | | ??????????????????????" "" " #??????????????????? | | ??????????????????????" "@ " #??????????????????? | | ??????????????????????" " #??????????????????? | | ???????????????????# """ "" #??????????????????? | | ???????????????????# #???????h??????????? | | ???????????????????# #??????????????????? | | ???????????????????""""""""""""??????????????????? | | ?????????????????????????????????????hw??????????? | | ?????????????????????????????????????????????????? | | ?????????????????????????????????????????????????? | | ?????????????????????????????????????????????????? | | ?????????????????????????????????????????????????? | | ?????????????????????????????????????????????????? | | ?????????????????????????????????????????????????? | | ???????????????????????????w?????????????????????? | | ?????????????????????????????????????????????????? | | ?????????????????????????????????????????????????? | | ?????????????????????????????????????????????????? | | ?????????????????????????????????????????????????? | | ?????????????????????????????????????????????????? | | ?????????????????????????????????????????????????? | | ?????????????????????????????????????????????????? | | ?????????????????????????????????????????????????? | | ?????????????????????????????????????????????????? | | ?????????????????????????????????????????????????? | | ?????????????????????????????????????????????????? | +----------------------------------------------------+ Best States ------------- Heat Dissipation 78 Coolant Potential 100 Energy Generation 35 Energy Capacity 350 Matter Stores 300 Matter Capacity 300 Sight Range 22 Terrain Scan Density 10 ECM Strength 1 Jamming Range 16 Cloak Strength 4 Additional Mass Support 12 Corruption Block 14 Armor Coverage 450 Resistance: TH 30 Propulsion Shielding 66 Weapon Shielding 66 Phase Shifting 20 Evasion (%) 65 Target Analysis 8 Recoil Reduction 5 Offensive Hacking 48 Defensive Hacking 20 Authchip Count 1 Item Schematics ----------------- Imp. Flight Unit | -9/Materials | Scanalyzed Imp. Assault Rifle | -9/Materials | Scanalyzed Hacking Suite | -9/Materials | Scanalyzed ECM Suite | -9/Materials | Scanalyzed Adv. Beam Cannon | -9/Materials | Scanalyzed Lgt. Nuclear Core | -9/Materials | Scanalyzed Imp. VTOL Module | -8/Materials | Scanalyzed Adv. Beam Rifle | -8/Materials | Scanalyzed Adv. Weight Redist. System | -8/Materials | Scanalyzed Imp. Propulsion Shielding | -8/Storage | Hacked Imp. Light Armor Plating | -8/Storage | Hacked Cld. VTOL Module | -5/Factory | Scanalyzed Imp. Hacking Suite | -5/Factory | Hacked Gravity Neutralizer | -4/Factory | Scanalyzed Robot Schematics ------------------ None Fabricated ------------ Imp. VTOL Module | x1 | -7/Factory Cld. VTOL Module | x1 | -5/Factory Imp. Hacking Suite | x1 | -4/Factory Imp. Hacking Suite | x1 | -4/Factory Cld. VTOL Module | x1 | -4/Factory Cld. VTOL Module | x1 | -3/Research Alien Tech Used ----------------- None Achievements -------------- 20k Club 30k Club Cya! Denied? Epsilon Run Maximum Efficiency Preemptive Strike Prison Break Project G-00 Pyromaniac Revising The Future Revolutionary Research Rockin' Loadout Speed Demon Supersonic Treasure Hunter Whoosh! Challenges ------------ None Game ------ Seed MicrowarpMetafieldInverter Manual? 0 Play Time 06:28:29 Cumulative 75.6 hours Start 2024.05.20 @ 06:15:01 End 2024.05.20 @ 15:50:38 Sessions 3 Manual Loads 0 Difficulty Rogue Special Mode None Game No. 70 Rogue 65 Adventurer 5 Explorer 0 Win Type 0 Total 1 Types 1/0/0/0/0/0/0/0/0 Lore% 38 Gallery% 47 Achievement% 35 Wizard Run 0 Options --------- Layout 2 ASCII 0 Keyboard 0 Movement Mouse Keybinds 0 Fullscreen 2 Font 24/Smallcaps Map View 50x44 Zoom Use 0% Tactical HUD 1 Map Filters NONE Filters NONE Steam 1 RUN: 3fc342ba-0a2f-4fbb-aa04-30cd0e4069d9